fUSD/lending_fUSD_20250806
["ID","MTS","AMOUNT","RATE_DAILY","PERIOD"]
[377678632,1754489444253,-150.0,0.00038716,30]
[377678633,1754489444264,-414.20387481,0.00038716,30]
[377678634,1754489444276,-6457.1864,0.00038721,2]
[377678635,1754489444287,-150.0,0.00038735,2]
[377678636,1754489444301,-150.0,0.00038739,2]
[377678637,1754489444313,-500.0,0.00038739,10]
[377678638,1754489444330,-150.0,0.00038742,2]
[377678639,1754489444345,-150.0,0.00038785,2]
[377678640,1754489444357,-46444.0182,0.000388,30]
[377678641,1754489444369,-600.0,0.000388,14]
[377678642,1754489444380,-150.0,0.00038802,2]
[377678643,1754489444391,-500.0,0.00038821,2]
[377678644,1754489444402,-500.0,0.00038821,120]
[377678645,1754489444414,-236.94844556,0.00038821,22]
[377678646,1754489444424,-500.0,0.00038821,22]
[377678647,1754489444436,-203.82032393,0.00038821,22]
[377678648,1754489444447,-500.0,0.00038821,22]
[377678649,1754489444456,-500.0,0.00038821,22]
[377678650,1754489444467,-500.0,0.00038821,22]
[377678651,1754489444478,-150.0,0.00038821,22]
[377678652,1754489444489,-500.0,0.00038821,22]
[377678653,1754489444501,-500.0,0.00038821,22]
[377678654,1754489444512,-541.87420058,0.00038821,22]
[377678655,1754489444524,-200.0,0.00038823,6]
[377678656,1754489444535,-200.0,0.00038824,6]
[377678657,1754489444547,-200.0,0.00038824,6]
[377678658,1754489444557,-200.0,0.00038825,6]
[377678659,1754489444564,-200.0,0.00038857,6]
[377678660,1754489444573,-500.0,0.0003888,120]
[377678661,1754489444583,-600.0,0.000389,14]
[377678662,1754489444594,-600.0,0.00038903,7]
[377678663,1754489444605,-500.0,0.00038903,7]
[377678664,1754489444616,-500.0,0.00038903,7]
[377678665,1754489444628,-367.37,0.00038903,2]
[377678666,1754489444639,-150.0,0.00038913,2]
[377678667,1754489444650,-150.0,0.00038929,2]
[377678668,1754489444662,-213.0,0.0003895,2]
[377678669,1754489444673,-367.37,0.00038982,2]
[377678670,1754489444684,-150.0,0.00038998,2]
[377678671,1754489444696,-1000.0,0.00039,19]
[377678672,1754489444708,-1000.0,0.00039,9]
[377678673,1754489444719,-1000.0,0.00039,9]
[377678674,1754489444731,-1008.0,0.00039,9]
[377678675,1754489444742,-933.13469064,0.00039,120]
[377678676,1754489444754,-151.0,0.00039053,7]
[377678677,1754489444765,-367.37,0.0003906,2]
[377678678,1754489444777,-2000.0,0.00039075,3]
[377678679,1754489444789,-2000.0,0.00039075,3]
[377678680,1754489444801,-150.0,0.0003908,2]
[377678681,1754489444812,-150.8166148,0.00039084,2]
[377678682,1754489444823,-2337.1204221,0.00039084,2]
[377678683,1754489444834,-500.0,0.00039095,2]
[377678684,1754489444845,-500.0,0.00039095,120]
[377678685,1754489444857,-500.0,0.00039095,22]
[377678686,1754489444868,-500.0,0.00039095,22]
[377678687,1754489444880,-500.0,0.00039095,22]
[377678688,1754489444892,-500.0,0.00039095,22]
[377678689,1754489444904,-213.7586928,0.00039095,22]
[377678690,1754489444916,-364.45489699,0.00039095,22]
[377678691,1754489444927,-582.08276904,0.00039095,22]
[377678692,1754489444938,-368.3782098,0.00039111,2]
[377678693,1754489444950,-1734.4822511,0.00039111,2]
[377678694,1754489444962,-39577.7688577,0.00039111,2]
[377678695,1754489444973,-911.979426,0.00039111,2]
[377678696,1754489444984,-26511.6532727,0.00039111,2]
[377678697,1754489444995,-9599.0527332,0.00039111,2]
[377678698,1754489445006,-150.0,0.00039137,2]
[377678699,1754489445018,-12666.7572382,0.00039138,2]
[377678700,1754489445029,-528.012686,0.00039138,2]
[377678701,1754489445041,-3054.1508375,0.00039138,2]
[377678702,1754489445052,-700.0,0.0003917,2]
[377678703,1754489445064,-152.71,0.00039177,2]
[377678704,1754489445075,-805.4168579,0.00039177,2]
[377678705,1754489445086,-23413.8313517,0.00039177,2]
[377678706,1754489445097,-8477.4268703,0.00039177,2]
[377678707,1754489445108,-150.8166148,0.00039177,2]
[377678708,1754489445119,-2064.03361,0.00039177,2]
[377678709,1754489445130,-5800.0,0.00039183,14]
[377678710,1754489445141,-150.0,0.00039191,2]
[377678711,1754489445152,-5800.0,0.00039192,14]
[377678712,1754489445165,-325.3341159,0.00039197,2]
[377678713,1754489445183,-1531.8122371,0.00039197,2]
[377678714,1754489445202,-34953.2032491,0.00039197,2]
[377678715,1754489445213,-10938.9800723,0.00039198,2]
[377678716,1754489445225,-11186.6775978,0.00039198,2]
[377678717,1754489445236,-466.3156935,0.00039198,2]
[377678718,1754489445250,-2697.280773,0.00039198,2]
[377678719,1754489445261,-282.290022,0.00039198,2]
[377678720,1754489445273,-1329.1422231,0.00039198,2]
[377678721,1754489445284,-30328.6376404,0.00039198,2]
[377678722,1754489445297,-698.8542897,0.00039198,2]
[377678723,1754489445308,-20316.0094306,0.00039198,2]
[377678724,1754489445320,-7355.8010074,0.00039198,2]
[377678725,1754489445331,-150.8166148,0.00039198,2]
[377678726,1754489445342,-1790.9467979,0.00039198,2]
[377678727,1754489445353,-500.0,0.00039199,30]
[377678728,1754489445363,-5800.0,0.000392,14]
[377678729,1754489445374,-607.0,0.000392,2]
[377678730,1754489445385,-200.622566,0.000392,18]
[377678731,1754489445396,-150.0,0.00039201,2]
[377678732,1754489445408,-9706.5979575,0.00039204,2]
[377678734,1754489445418,-404.618701,0.00039204,2]
[377678735,1754489445429,-172.78898219,0.00039204,2]
[377678736,1754489445440,-2340.4107084,0.00039204,2]
[377678737,1754489445451,-589.73917972,0.00039204,48]
[377678738,1754489445462,-2320.64950461,0.00039204,2]
[377678739,1754489445473,-4626.28393033,0.00039204,2]
[377678740,1754489445484,-326.96853886,0.00039204,2]
[377678741,1754489445495,-197.32254509,0.00039204,15]
[377678743,1754489445506,-166.43368677,0.00039204,2]
[377678744,1754489445517,-10336.07904821,0.00039204,2]
[377678745,1754489445526,-9491.6726346,0.00039205,2]
[377678746,1754489445539,-150.0,0.00039207,2]
[377678747,1754489445550,-500.0,0.00039224,30]
[377678748,1754489445561,-500.0,0.00039224,30]
[377678749,1754489445574,-104635.07516016,0.00039225,2]
[377678750,1754489445585,-8044.3651968,0.00039225,2]
[377678751,1754489445596,-6597.057759,0.00039225,2]
[377678752,1754489445607,-8226.5183171,0.00039225,2]
[377678753,1754489445617,-6746.4386768,0.00039225,2]
[377678754,1754489445628,-342.9217085,0.00039225,2]
[377678755,1754489445639,-281.224716,0.00039225,2]
[377678756,1754489445650,-1983.5406439,0.00039225,2]
[377678757,1754489445661,-1626.6705793,0.00039225,2]
[377678758,1754489445672,-239.245928,0.00039225,2]
[377678759,1754489445682,-196.2018341,0.00039225,2]
[377678760,1754489445692,-1126.4722092,0.00039225,2]
[377678761,1754489445703,-923.8021952,0.00039225,2]
[377678762,1754489445715,-25704.0720318,0.00039225,2]
[377678763,1754489445725,-21079.5064232,0.00039225,2]
[377678764,1754489445736,-592.2917216,0.00039225,2]
[377678765,1754489445747,-485.7291535,0.00039225,2]
[377678766,1754489445757,-17218.1875096,0.00039225,2]
[377678767,1754489445770,-14120.3655886,0.00039225,2]
[377678768,1754489445780,-6234.1751446,0.00039225,2]
[377678769,1754489445792,-5112.5492817,0.00039225,2]
[377678770,1754489445803,-150.8166148,0.00039225,2]
[377678771,1754489445814,-150.8166148,0.00039225,2]
[377678772,1754489445825,-1517.8599858,0.00039225,2]
[377678773,1754489445835,-1244.7731737,0.00039225,2]
[377678774,1754489445847,-17863.54818269,0.00039227,4]
[377678775,1754489445857,-500.0,0.00039231,30]
[377678776,1754489445867,-545.81,0.00039231,30]
[377678777,1754489445877,-500.0,0.00039231,30]
[377678778,1754489445888,-150.5,0.0003924,120]
[377678779,1754489445899,-1134.44091373,0.00039243,120]
[377678780,1754489445910,-500.0,0.0003925,30]
[377678781,1754489445921,-500.0,0.0003925,30]
[377678782,1754489445932,-206.89,0.0003925,30]
[377678783,1754489445943,-99497.37686205,0.00039251,7]
[377678784,1754489445954,-190.44669699,0.00039251,7]
[377678785,1754489445965,-500.0,0.00039252,30]
[377678786,1754489445976,-500.0,0.00039252,30]
[377678787,1754489445986,-500.0,0.00039252,30]
[377678788,1754489445997,-500.0,0.00039252,30]
[377678789,1754489446008,-104635.07516016,0.00039252,2]
[377678790,1754489446019,-104635.07516016,0.00039252,2]
[377678791,1754489446030,-104635.07516016,0.00039252,2]
[377678792,1754489446042,-104635.07516016,0.00039252,2]
[377678793,1754489446053,-500.0,0.00039258,30]
[377678794,1754489446063,-500.0,0.00039258,30]
[377678795,1754489446075,-500.0,0.00039258,30]
[377678796,1754489446085,-500.0,0.00039258,30]
[377678797,1754489446096,-500.0,0.00039258,30]
[377678798,1754489446107,-500.0,0.00039258,30]
[377678799,1754489446117,-500.0,0.00039258,30]
[377678800,1754489446127,-550.98,0.00039258,30]
[377678801,1754489446138,-201.3,0.00039258,30]
[377678802,1754489446149,-532.12898051,0.00039259,2]
[377678803,1754489446160,-532.12898051,0.00039259,2]
[377678804,1754489446170,-500.0,0.00039262,120]
[377678805,1754489446181,-500.0,0.00039262,120]
[377678806,1754489446192,-500.0,0.00039262,120]
[377678807,1754489446202,-150.0,0.00039263,2]
[377678808,1754489446214,-150.0,0.00039264,2]
[377678809,1754489446225,-327.76131967,0.00039264,2]
[377678810,1754489446236,-2110.0,0.00039264,2]
[377678811,1754489446247,-150.0,0.00039264,2]
[377678812,1754489446258,-495.63220568,0.00039264,2]
[377678813,1754489446269,-387.81528722,0.0003927,94]
[377678814,1754489446279,-400.0,0.0003927,2]
[377678815,1754489446291,-400.0,0.0003927,2]
[377678816,1754489446302,-400.0,0.0003927,2]
[377678817,1754489446313,-403.25725921,0.0003927,2]
[377678818,1754489446324,-700.0,0.0003927,2]
[377678819,1754489446334,-700.0,0.0003927,2]
[377678820,1754489446345,-700.0,0.0003927,2]
[377678821,1754489446357,-700.0,0.0003927,2]
[377678822,1754489446368,-2000.0,0.00039271,120]
[377678823,1754489446379,-442.18051439,0.00039273,2]
[377678824,1754489446389,-500.0,0.00039273,5]
[377678825,1754489446400,-500.0,0.00039287,11]
[377678826,1754489446411,-237.98703779,0.00039288,7]
[377678827,1754489446423,-150.0,0.00039288,7]
[377678828,1754489446434,-225.89335753,0.00039294,2]
[377678829,1754489446445,-225.89335753,0.00039294,2]
[377678830,1754489446456,-31046.09,0.000393,2]
[377678831,1754489446468,-23402.91,0.000393,14]
[377678832,1754489446479,-3402.06,0.000393,7]
[377678833,1754489446489,-779.0269,0.000393,2]
[377678834,1754489446500,-779.0269,0.000393,2]
[377678835,1754489446511,-1201.9702,0.000393,2]
[377678836,1754489446522,-1201.9702,0.000393,2]
[377678837,1754489446532,-822.17,0.000393,30]
[377678838,1754489446544,-2091.9776,0.000393,2]
[377678839,1754489446555,-2091.9776,0.000393,2]
[377678840,1754489446565,-1308.6998252,0.00039304,21]
[377678841,1754489446576,-2500.0,0.00039304,30]
[377678842,1754489446587,-2500.0,0.00039304,30]
[377678843,1754489446598,-2500.0,0.00039304,30]
[377678844,1754489446609,-2500.0,0.00039304,30]
[377678845,1754489446620,-2500.0,0.00039304,30]
[377678846,1754489446631,-2500.0,0.00039304,30]
[377678847,1754489446641,-2500.0,0.00039304,30]
[377678848,1754489446653,-2500.0,0.00039304,30]
[377678849,1754489446663,-2524.0345603,0.00039304,30]
[377678850,1754489446674,-10000.0,0.00039304,60]
[377678851,1754489446685,-150.0,0.00039304,120]
[377678852,1754489446696,-150.0,0.00039304,120]
[377678853,1754489446707,-10000.0,0.00039304,83]
[377678854,1754489446718,-394.1344693,0.00039304,2]
[377678855,1754489446729,-167324.91788986,0.00039304,2]
[377678856,1754489446739,-1210.0,0.00039304,2]
[377678857,1754489446750,-709.08079022,0.00039304,2]
[377678858,1754489446760,-365.14259328,0.00039304,2]
[377678859,1754489446773,-351.16578673,0.00039304,2]
[377678860,1754489446784,-767.90211438,0.00039304,2]
[377678861,1754489446795,-1038.02155062,0.00039304,2]
[377678862,1754489446806,-349.38676187,0.00039304,2]
[377678863,1754489446816,-152.56070316,0.00039304,2]
[377678864,1754489446826,-251.2004376,0.00039304,2]
[377678865,1754489446836,-165.78433502,0.00039304,2]
[377678866,1754489446845,-658.55758783,0.00039304,2]
[377678867,1754489446856,-245.36028833,0.00039304,2]
[377678868,1754489446866,-1050.0966165,0.00039304,2]
[377678869,1754489446876,-599.73331381,0.00039304,2]
[377678870,1754489446887,-185.58034681,0.00039304,2]
[377678871,1754489446897,-840.7955521,0.00039304,2]
[377678872,1754489446907,-643.0,0.00039304,2]
[377678873,1754489446918,-978.27790735,0.00039304,2]
[377678874,1754489446927,-577.60072452,0.00039304,2]
[377678875,1754489446937,-155.9254438,0.00039304,2]
[377678876,1754489446947,-176.78367728,0.00039304,2]
[377678877,1754489446957,-550.0,0.00039304,2]
[377678878,1754489446967,-1016.2199833,0.00039304,2]
[377678879,1754489446978,-230.80198621,0.00039304,2]
[377678880,1754489446987,-175.15982152,0.00039304,2]
[377678881,1754489446998,-378.42370374,0.00039304,2]
[377678882,1754489447008,-1041.8205886,0.00039304,2]
[377678883,1754489447019,-1186.64622017,0.00039304,2]
[377678884,1754489447029,-266.7089142,0.00039304,2]
[377678885,1754489447040,-567.72691969,0.00039304,2]
[377678886,1754489447050,-150.0,0.00039304,2]
[377678887,1754489447060,-458.37637782,0.00039304,2]
[377678888,1754489447071,-631.40318876,0.00039304,2]
[377678889,1754489447081,-216.45008399,0.00039304,2]
[377678890,1754489447090,-46874.99398701,0.00039304,2]
[377678891,1754489447100,-1075.35517636,0.00039304,2]
[377678892,1754489447110,-21001.38741669,0.00039304,2]
[377678893,1754489447131,-583.78646717,0.00039304,2]
[377678894,1754489447141,-5565.7241975,0.00039304,2]
[377678895,1754489447151,-344.85822045,0.00039304,2]
[377678896,1754489447161,-29384.16414029,0.00039304,7]
[377678897,1754489447171,-1100.0,0.00039304,2]
[377678898,1754489447181,-919.1699543,0.00039304,2]
[377678899,1754489447191,-27169.70023552,0.00039304,2]
[377678900,1754489447202,-485.27404371,0.00039304,2]
[377678901,1754489447212,-7908.88945231,0.00039304,2]
[377678902,1754489447222,-171.77776254,0.00039304,2]
[377678903,1754489447231,-734.01363344,0.00039304,2]
[377678904,1754489447242,-552.51809656,0.00039304,2]
[377678905,1754489447255,-1019.5824027,0.00039304,2]
[377678906,1754489447266,-367.61659087,0.00039304,2]
[377678907,1754489447277,-446.15442201,0.00039304,2]
[377678908,1754489447289,-23218.50172473,0.00039304,2]
[377678909,1754489447307,-4512.07770836,0.00039304,90]
[377678910,1754489447324,-1126.84350327,0.00039304,2]
[377678911,1754489447335,-405.85555875,0.00039304,2]
[377678912,1754489447346,-7043.27497511,0.00039304,2]
[377678913,1754489447357,-20428.13231792,0.00039304,2]
[377678914,1754489448103,-6759.29783353,0.00039304,2]
[377678915,1754489448138,-204.5331713,0.00039304,2]
[377678916,1754489448166,-870.54555649,0.00039304,2]
[377678917,1754489448181,-11033.48555958,0.00039304,2]
[377678918,1754489448191,-285.14652441,0.00039304,2]
[377678919,1754489448201,-5734.7975795,0.00039304,2]
[377678920,1754489448211,-1121.20418945,0.00039304,2]
[377678921,1754489448221,-10285.68629112,0.00039304,2]
[377678922,1754489448231,-1044.34916865,0.00039304,2]
[377678923,1754489448241,-464.26364546,0.00039304,2]
[377678924,1754489448253,-150.0,0.00039304,2]
[377678925,1754489448264,-285.06683771,0.00039304,7]
[377678926,1754489448275,-160.0,0.00039304,2]
[377678927,1754489448286,-415.50835774,0.00039304,2]
[377678928,1754489448297,-12722.38723424,0.00039304,2]
[377678929,1754489448307,-1000.0,0.00039304,2]
[377678930,1754489448318,-159.23449178,0.00039304,2]
[377678931,1754489448328,-500.81336692,0.00039304,2]
[377678932,1754489448338,-201.05604536,0.00039304,2]
[377678933,1754489448348,-150.0,0.00039304,2]
[377678934,1754489448358,-163.7,0.00039304,2]
[377678935,1754489448368,-430.65,0.00039304,30]
[377678936,1754489448378,-3976.92576411,0.00039304,2]
[377678937,1754489448388,-1279.8723568,0.00039304,2]
[377678938,1754489448397,-521.76139794,0.00039304,120]
[377678939,1754489448408,-5399.31394552,0.00039304,7]
[377678940,1754489448417,-482.82883652,0.00039304,30]
[377678941,1754489448427,-257.12275801,0.00039304,30]
[377678942,1754489448438,-257.12275801,0.00039304,30]
[377678943,1754489448448,-400.0,0.00039304,30]
[377678944,1754489448458,-466.38166271,0.00039304,30]
[377678945,1754489448469,-400.0,0.00039304,30]
[377678946,1754489448479,-464.89867646,0.00039304,30]
[377678947,1754489448489,-400.0,0.00039304,30]
[377678948,1754489448500,-400.0,0.00039304,30]
[377678949,1754489448511,-400.0,0.00039304,30]
[377678950,1754489448522,-400.0,0.00039304,30]
[377678951,1754489448532,-400.0,0.00039304,30]
[377678952,1754489448543,-400.0,0.00039304,30]
[377678953,1754489448553,-400.0,0.00039304,30]
[377678954,1754489448563,-400.0,0.00039304,30]
[377678955,1754489448574,-400.0,0.00039304,30]
[377678956,1754489448584,-400.0,0.00039304,30]
[377678957,1754489448594,-400.0,0.00039304,30]
[377678958,1754489448604,-257.86304949,0.00039304,30]
[377678959,1754489448615,-400.0,0.00039304,2]
[377678960,1754489448624,-400.0,0.00039304,30]
[377678961,1754489448635,-400.0,0.00039304,30]
[377678962,1754489448645,-400.0,0.00039304,30]
[377678963,1754489448655,-400.0,0.00039304,30]
[377678964,1754489448665,-927.57,0.00039304,30]
[377678965,1754489448676,-927.57,0.00039304,30]
[377678966,1754489448686,-927.57,0.00039304,30]
[377678967,1754489448697,-927.57,0.00039304,30]
[377678968,1754489448707,-297.92816633,0.00039304,30]
[377678969,1754489448717,-927.57,0.00039304,30]
[377678970,1754489448727,-927.57,0.00039304,30]
[377678971,1754489448737,-927.57,0.00039304,30]
[377678972,1754489448748,-927.57,0.00039304,30]
[377678973,1754489448758,-400.0,0.00039304,30]
[377678974,1754489448769,-927.57,0.00039304,30]
[377678975,1754489448780,-538.83389548,0.00039304,30]
[377678976,1754489448793,-927.57,0.00039304,30]
[377678977,1754489448811,-927.57,0.00039304,30]
[377678978,1754489448820,-927.57,0.00039304,30]
[377678979,1754489448830,-927.57,0.00039304,30]
[377678980,1754489448840,-927.57,0.00039304,30]
[377678981,1754489448850,-927.57,0.00039304,30]
[377678982,1754489448860,-927.57,0.00039304,30]
[377678983,1754489448870,-927.57,0.00039304,30]
[377678984,1754489448880,-927.57,0.00039304,30]
[377678985,1754489448889,-927.57,0.00039304,30]
[377678986,1754489448899,-927.57,0.00039304,30]
[377678987,1754489448909,-927.57,0.00039304,30]
[377678988,1754489448919,-927.57,0.00039304,30]
[377678989,1754489448929,-927.57,0.00039304,30]
[377678990,1754489448939,-927.60877747,0.00039304,30]
[377678991,1754489448949,-400.0,0.00039304,30]
[377678992,1754489448959,-400.0,0.00039304,30]
[377678993,1754489448968,-400.0,0.00039304,30]
[377678994,1754489448978,-400.0,0.00039304,30]
[377678995,1754489448989,-400.0,0.00039304,30]
[377678996,1754489448999,-400.0,0.00039304,30]
[377678997,1754489449009,-400.0,0.00039304,30]
[377678998,1754489449019,-400.0,0.00039304,30]
[377678999,1754489449029,-400.0,0.00039304,30]
[377679000,1754489449040,-400.0,0.00039304,30]
[377679001,1754489449050,-400.0,0.00039304,30]
[377679002,1754489449060,-400.0,0.00039304,30]
[377679003,1754489449071,-537.21380486,0.00039304,30]
[377679004,1754489449081,-400.0,0.00039304,30]
[377679005,1754489449091,-423.43,0.00039304,30]
[377679006,1754489449104,-423.43,0.00039304,30]
[377679007,1754489449114,-423.43,0.00039304,30]
[377679008,1754489449124,-423.43,0.00039304,30]
[377679009,1754489449134,-423.43,0.00039304,30]
[377679010,1754489449144,-423.43,0.00039304,30]
[377679011,1754489449154,-423.43,0.00039304,30]
[377679012,1754489449163,-400.0,0.00039304,30]
[377679013,1754489449173,-423.43,0.00039304,30]
[377679014,1754489449183,-400.0,0.00039304,30]
[377679015,1754489449193,-423.43,0.00039304,30]
[377679016,1754489449203,-400.0,0.00039304,30]
[377679017,1754489449215,-423.43,0.00039304,30]
[377679018,1754489449224,-400.0,0.00039304,30]
[377679019,1754489449234,-423.43,0.00039304,30]
[377679020,1754489449247,-400.0,0.00039304,30]
[377679021,1754489449257,-190.0,0.00039304,30]
[377679022,1754489449267,-423.43,0.00039304,30]
[377679023,1754489449277,-423.43,0.00039304,30]
[377679024,1754489449287,-423.43,0.00039304,30]
[377679025,1754489449298,-423.43,0.00039304,30]
[377679026,1754489449307,-423.43,0.00039304,30]
[377679027,1754489449316,-423.43,0.00039304,30]
[377679028,1754489449327,-423.43,0.00039304,30]
[377679029,1754489449338,-423.43,0.00039304,30]
[377679030,1754489449347,-593.29,0.00039304,30]
[377679031,1754489449357,-423.43,0.00039304,30]
[377679032,1754489449366,-593.29,0.00039304,30]
[377679033,1754489449376,-1452.0,0.00039304,30]
[377679034,1754489449387,-423.43,0.00039304,30]
[377679035,1754489449397,-593.29,0.00039304,30]
[377679036,1754489449407,-423.43,0.00039304,30]
[377679037,1754489449417,-1452.0,0.00039304,30]
[377679038,1754489449428,-593.29,0.00039304,30]
[377679039,1754489449437,-1452.0,0.00039304,30]
[377679040,1754489449447,-1452.0,0.00039304,30]
[377679041,1754489449456,-423.43,0.00039304,30]
[377679042,1754489449466,-423.54530722,0.00039304,30]
[377679043,1754489449476,-1452.0,0.00039304,30]
[377679044,1754489449485,-1452.0,0.00039304,30]
[377679045,1754489449495,-1221.01,0.00039304,30]
[377679046,1754489449504,-1221.01,0.00039304,30]
[377679047,1754489449514,-593.29,0.00039304,30]
[377679048,1754489449523,-1221.01,0.00039304,30]
[377679049,1754489449533,-1221.01,0.00039304,30]
[377679050,1754489449545,-1221.01,0.00039304,30]
[377679051,1754489449555,-1221.01,0.00039304,30]
[377679052,1754489449565,-1221.01,0.00039304,30]
[377679053,1754489449574,-1221.01,0.00039304,30]
[377679054,1754489449584,-1221.01,0.00039304,30]
[377679055,1754489449594,-1221.01,0.00039304,30]
[377679056,1754489449604,-593.29,0.00039304,30]
[377679057,1754489449613,-1221.01,0.00039304,30]
[377679058,1754489449622,-1221.01,0.00039304,30]
[377679059,1754489449632,-593.29,0.00039304,30]
[377679060,1754489449641,-1221.01,0.00039304,30]
[377679061,1754489449651,-593.29,0.00039304,30]
[377679062,1754489449661,-1221.01,0.00039304,30]
[377679063,1754489449671,-593.29,0.00039304,30]
[377679064,1754489449681,-1221.01,0.00039304,30]
[377679065,1754489449690,-593.29,0.00039304,30]
[377679066,1754489449700,-1221.01,0.00039304,30]
[377679067,1754489449710,-593.29,0.00039304,30]
[377679068,1754489449719,-1221.01,0.00039304,30]
[377679069,1754489449729,-593.29,0.00039304,30]
[377679070,1754489449738,-1221.01,0.00039304,30]
[377679071,1754489449748,-1221.01,0.00039304,30]
[377679072,1754489449757,-593.29,0.00039304,30]
[377679073,1754489449768,-1452.0,0.00039304,30]
[377679074,1754489449778,-1221.01,0.00039304,30]
[377679075,1754489449790,-593.29,0.00039304,30]
[377679076,1754489449799,-1452.0,0.00039304,30]
[377679077,1754489449809,-1452.0,0.00039304,30]
[377679078,1754489449819,-1452.0,0.00039304,30]
[377679079,1754489449828,-1221.01,0.00039304,30]
[377679080,1754489449838,-1221.01,0.00039304,30]
[377679081,1754489449848,-1452.0,0.00039304,30]
[377679082,1754489449857,-1221.01,0.00039304,30]
[377679083,1754489449867,-1452.0,0.00039304,30]
[377679084,1754489449876,-1221.24475481,0.00039304,30]
[377679085,1754489449886,-1452.0,0.00039304,30]
[377679086,1754489449895,-1452.0,0.00039304,30]
[377679087,1754489449906,-593.29,0.00039304,30]
[377679088,1754489449916,-1452.0,0.00039304,30]
[377679089,1754489449927,-593.29,0.00039304,30]
[377679090,1754489449937,-593.29,0.00039304,30]
[377679091,1754489449947,-593.29,0.00039304,30]
[377679092,1754489449957,-1452.0,0.00039304,30]
[377679093,1754489449967,-593.29,0.00039304,30]
[377679094,1754489449976,-1452.0,0.00039304,30]
[377679095,1754489449986,-593.29,0.00039304,30]
[377679096,1754489449995,-1452.0,0.00039304,30]
[377679097,1754489450004,-593.29,0.00039304,30]
[377679098,1754489450015,-1452.0,0.00039304,30]
[377679099,1754489450025,-593.29,0.00039304,30]
[377679100,1754489450037,-1452.0,0.00039304,30]
[377679101,1754489450048,-593.29,0.00039304,30]
[377679102,1754489450058,-400.0,0.00039304,30]
[377679103,1754489450067,-400.0,0.00039304,30]
[377679104,1754489450076,-1452.0,0.00039304,30]
[377679105,1754489450086,-593.32599751,0.00039304,30]
[377679106,1754489450095,-400.0,0.00039304,30]
[377679107,1754489450105,-400.0,0.00039304,30]
[377679108,1754489450115,-1452.0,0.00039304,30]
[377679109,1754489450125,-400.0,0.00039304,30]
[377679110,1754489450135,-400.0,0.00039304,30]
[377679111,1754489450145,-1452.0,0.00039304,30]
[377679112,1754489450155,-400.0,0.00039304,30]
[377679113,1754489450165,-400.0,0.00039304,30]
[377679114,1754489450174,-400.0,0.00039304,30]
[377679115,1754489450184,-1452.01979712,0.00039304,30]
[377679116,1754489450194,-1131.93,0.00039304,30]
[377679117,1754489450204,-1131.93,0.00039304,30]
[377679118,1754489450215,-1131.93,0.00039304,30]
[377679119,1754489450225,-1131.93,0.00039304,30]
[377679120,1754489450235,-1131.93,0.00039304,30]
[377679121,1754489450247,-1131.93,0.00039304,30]
[377679122,1754489450258,-1131.93,0.00039304,30]
[377679123,1754489450269,-1131.93,0.00039304,30]
[377679124,1754489450279,-1131.93,0.00039304,30]
[377679125,1754489450291,-1131.93,0.00039304,30]
[377679126,1754489450300,-1131.93,0.00039304,30]
[377679127,1754489450310,-1131.93,0.00039304,30]
[377679128,1754489450323,-1131.93,0.00039304,30]
[377679129,1754489450334,-1131.93,0.00039304,30]
[377679130,1754489450344,-1131.93,0.00039304,30]
[377679131,1754489450354,-1131.93,0.00039304,30]
[377679132,1754489450364,-1131.93,0.00039304,30]
[377679133,1754489450374,-1131.93,0.00039304,30]